[Event "*** Titled Tuesday Blitz"]
[Site "Chess.com"]
[Date "2018.06.05"]
[Round "2"]
[White "biostatistician"]
[Black "ehrenfeld"]
[Result "1-0"]
[WhiteElo "2438"]
[BlackElo "2459"]
[TimeControl "180+2"]
[EndTime "13:24:52 PDT"]
[Termination "biostatistician won by resignation"]

1. d4 {[%clk 0:03:01.8]} 1... Nf6 {[%clk 0:03:00.1]} 2. Nf3 {[%clk 0:03:03.2]}
2... e6 {[%clk 0:03:00.8]} 3. c4 {[%clk 0:03:04.6]} 3... Bb4+ {[%clk 0:03:00.9]}
4. Nbd2 {[%clk 0:03:06]} 4... d6 {[%clk 0:03:01.1]} 5. a3 {[%clk 0:03:07.9]}
5... Bxd2+ {[%clk 0:03:01.3]} 6. Bxd2 {[%clk 0:03:09.3]} 6... Nbd7 {[%clk
0:03:01.9]} 7. Bg5 {[%clk 0:03:10.5]} 7... h6 {[%clk 0:03:02.1]} 8. Bh4 {[%clk
0:03:11.8]} 8... Nf8 {[%clk 0:03:02.5]} 9. Nd2 {[%clk 0:03:10.8]} 9... Ng6
{[%clk 0:03:03.1]} 10. Bg3 {[%clk 0:03:12.3]} 10... Nh5 {[%clk 0:03:03.3]} 11.
e4 {[%clk 0:03:10.7]} 11... Nxg3 {[%clk 0:03:03.5]} 12. hxg3 {[%clk 0:03:12.6]}
12... e5 {[%clk 0:03:04.3]} 13. d5 {[%clk 0:03:12.6]} 13... Bd7 {[%clk
0:03:03.8]} 14. Bd3 {[%clk 0:03:13.4]} 14... O-O {[%clk 0:03:04]} 15. Qh5 {[%clk
0:03:10.4]} 15... Qg5 {[%clk 0:03:01.3]} 16. Qxg5 {[%clk 0:03:05.2]} 16... hxg5
{[%clk 0:03:01.4]} 17. Nf1 {[%clk 0:03:03.7]} 17... f6 {[%clk 0:02:53.6]} 18.
Ne3 {[%clk 0:03:04.4]} 18... Ne7 {[%clk 0:02:53.6]} 19. b4 {[%clk 0:03:01]}
19... a5 {[%clk 0:02:52.8]} 20. Ke2 {[%clk 0:03:01.2]} 20... Kf7 {[%clk
0:02:52.2]} 21. c5 {[%clk 0:03:02.4]} 21... Ra7 {[%clk 0:02:27]} 22. cxd6 {[%clk
0:03:00.5]} 22... cxd6 {[%clk 0:02:27.5]} 23. Nc4 {[%clk 0:03:02.1]} 23... Nc8
{[%clk 0:02:18.5]} 24. Nxa5 {[%clk 0:03:02.5]} 24... Nb6 {[%clk 0:02:02.3]} 25.
Rhc1 {[%clk 0:03:01.7]} 25... Rc8 {[%clk 0:02:02.1]} 26. Rxc8 {[%clk 0:03:00.3]}
26... Nxc8 {[%clk 0:02:00.8]} 27. Rc1 {[%clk 0:03:02.2]} 27... b6 {[%clk
0:01:56.1]} 28. Nc4 {[%clk 0:02:56.7]} 28... Ke7 {[%clk 0:01:50.1]} 29. Rc3
{[%clk 0:02:55.7]} 29... Bb5 {[%clk 0:01:36.5]} 30. Nxe5 {[%clk 0:02:51.2]}
30... dxe5 {[%clk 0:01:29.2]} 31. Bxb5 {[%clk 0:02:52.7]} 31... Nd6 {[%clk
0:01:28.5]} 32. Bd3 {[%clk 0:02:54.2]} 32... g6 {[%clk 0:01:26.1]} 33. g4 {[%clk
0:02:54.6]} 33... f5 {[%clk 0:01:20.1]} 34. gxf5 {[%clk 0:02:54.9]} 34... gxf5
{[%clk 0:01:21]} 35. exf5 {[%clk 0:02:56]} 35... e4 {[%clk 0:01:21.7]} 36. Bc2
{[%clk 0:02:33.8]} 36... Kf6 {[%clk 0:01:09.4]} 37. g4 {[%clk 0:02:34.3]} 37...
Ke5 {[%clk 0:01:08.7]} 38. a4 {[%clk 0:02:22]} 38... Kxd5 {[%clk 0:00:56.4]} 39.
Ke3 {[%clk 0:02:18.3]} 39... Nc4+ {[%clk 0:00:54.8]} 40. Ke2 {[%clk 0:02:02.3]}
40... Kd4 {[%clk 0:00:55.2]} 41. Rh3 {[%clk 0:02:01.4]} 41... Rc7 {[%clk
0:00:51]} 42. Rh8 {[%clk 0:01:54.8]} 42... Nd6 {[%clk 0:00:41.4]} 43. Bb3 {[%clk
0:01:46.3]} 43... Rc3 {[%clk 0:00:40.2]} 44. Rd8 {[%clk 0:01:43]} 44... Ke5
{[%clk 0:00:39.3]} 45. Bg8 {[%clk 0:01:37.8]} 45... Rc2+ {[%clk 0:00:38.3]} 46.
Ke3 {[%clk 0:01:36.8]} 46... Rc3+ {[%clk 0:00:38.6]} 47. Ke2 {[%clk 0:01:37.8]}
47... Rc2+ {[%clk 0:00:39.6]} 48. Kf1 {[%clk 0:01:39.1]} 48... Rd2 {[%clk
0:00:28]} 49. a5 {[%clk 0:01:38.2]} 49... bxa5 {[%clk 0:00:28.1]} 50. bxa5
{[%clk 0:01:40.1]} 50... Kf4 {[%clk 0:00:25.6]} 51. Ke1 {[%clk 0:01:39.3]} 51...
e3 {[%clk 0:00:16.4]} 52. fxe3+ {[%clk 0:01:41.2]} 52... Kxe3 {[%clk 0:00:17.1]}
53. f6 {[%clk 0:01:35]} 53... Ra2 {[%clk 0:00:15.3]} 54. Kd1 {[%clk 0:01:34.7]}
54... Ne4 {[%clk 0:00:14.6]} 55. Bxa2 {[%clk 0:01:33.3]} 1-0

[Event "*** Titled Tuesday Blitz"]
[Site "Chess.com"]
[Date "2018.06.05"]
[Round "2"]
[White "Mbneu"]
[Black "Vusatiuk_Vladimir"]
[Result "0-1"]
[WhiteElo "2203"]
[BlackElo "2194"]
[TimeControl "180+2"]
[EndTime "13:24:52 PDT"]
[Termination "Vusatiuk_Vladimir won by resignation"]

1. d4 {[%clk 0:03:01.1]} 1... Nf6 {[%clk 0:03:00.4]} 2. c4 {[%clk 0:03:01]} 2...
e6 {[%clk 0:03:01.6]} 3. Nc3 {[%clk 0:02:59.4]} 3... Bb4 {[%clk 0:03:02.3]} 4.
Bg5 {[%clk 0:02:59.5]} 4... b6 {[%clk 0:03:01.9]} 5. e3 {[%clk 0:02:58]} 5...
Bb7 {[%clk 0:03:02.5]} 6. Nf3 {[%clk 0:02:57.1]} 6... d5 {[%clk 0:02:58.6]} 7.
cxd5 {[%clk 0:02:55.9]} 7... Bxc3+ {[%clk 0:02:41.4]} 8. bxc3 {[%clk 0:02:55.9]}
8... Qxd5 {[%clk 0:02:37.6]} 9. Bd3 {[%clk 0:02:36.6]} 9... Ne4 {[%clk
0:02:33.6]} 10. Bxe4 {[%clk 0:02:32.1]} 10... Qxe4 {[%clk 0:02:33.1]} 11. O-O
{[%clk 0:02:33.6]} 11... O-O {[%clk 0:02:32]} 12. Ne1 {[%clk 0:02:33.8]} 12...
Nd7 {[%clk 0:02:27]} 13. f3 {[%clk 0:02:33.9]} 13... Qg6 {[%clk 0:02:26.5]} 14.
Bh4 {[%clk 0:02:32.9]} 14... c5 {[%clk 0:02:24.7]} 15. e4 {[%clk 0:02:23]} 15...
Qh6 {[%clk 0:02:17.7]} 16. Bf2 {[%clk 0:02:20.5]} 16... Rfd8 {[%clk 0:02:14.5]}
17. Nc2 {[%clk 0:02:20]} 17... Ne5 {[%clk 0:02:06.7]} 18. Qc1 {[%clk 0:02:06.6]}
18... Qxc1 {[%clk 0:02:03.2]} 19. Rfxc1 {[%clk 0:02:05.7]} 19... Nd3 {[%clk
0:02:03.7]} 20. Rd1 {[%clk 0:02:00.7]} 20... Nxf2 {[%clk 0:02:01.3]} 21. Kxf2
{[%clk 0:02:02.6]} 21... Rac8 {[%clk 0:01:58.3]} 22. Rac1 {[%clk 0:02:00]} 22...
f5 {[%clk 0:01:53.2]} 23. Ke3 {[%clk 0:01:51.3]} 23... Kf7 {[%clk 0:01:52.2]}
24. dxc5 {[%clk 0:01:44.1]} 24... bxc5 {[%clk 0:01:48.4]} 25. Rxd8 {[%clk
0:01:41]} 25... Rxd8 {[%clk 0:01:49]} 26. Rb1 {[%clk 0:01:37.1]} 26... Ba6
{[%clk 0:01:46.9]} 27. Ne1 {[%clk 0:01:37.7]} 27... g5 {[%clk 0:01:42.2]} 28. c4
{[%clk 0:01:25.3]} 28... Bxc4 {[%clk 0:01:35.4]} 29. Rc1 {[%clk 0:01:26.6]}
29... f4+ {[%clk 0:01:29.6]} 30. Kf2 {[%clk 0:01:27.4]} 30... Rd2+ {[%clk
0:01:31.2]} 31. Kg1 {[%clk 0:01:28.5]} 31... Bxa2 {[%clk 0:01:23.5]} 32. Rxc5
{[%clk 0:01:27.4]} 32... Kf6 {[%clk 0:01:23.3]} 33. Nc2 {[%clk 0:01:23.2]} 33...
Bb3 {[%clk 0:01:16]} 34. Nb4 {[%clk 0:01:18.6]} 34... Rd4 {[%clk 0:01:13.6]} 35.
Nc6 {[%clk 0:01:18]} 35... Rd7 {[%clk 0:01:01.4]} 36. Ra5 {[%clk 0:01:11.6]}
36... a6 {[%clk 0:00:47.4]} 37. h3 {[%clk 0:01:06.1]} 37... Bc4 {[%clk
0:00:43.8]} 38. Kh2 {[%clk 0:01:01.8]} 38... Bb5 {[%clk 0:00:41.5]} 39. Nb4
{[%clk 0:00:56.3]} 39... Bc4 {[%clk 0:00:29.9]} 40. Nc6 {[%clk 0:00:50.9]} 40...
Rc7 {[%clk 0:00:21.6]} 41. Ne5 {[%clk 0:00:50.3]} 41... Bb5 {[%clk 0:00:22.8]}
42. Ng4+ {[%clk 0:00:50.6]} 42... Kg7 {[%clk 0:00:24]} 43. Ra2 {[%clk
0:00:42.2]} 43... h5 {[%clk 0:00:24.9]} 44. Ne5 {[%clk 0:00:42.5]} 44... Kf6
{[%clk 0:00:25.8]} 0-1

[Event "*** Titled Tuesday Blitz"]
[Site "Chess.com"]
[Date "2018.06.05"]
[Round "2"]
[White "Keaton87"]
[Black "michaelk123"]
[Result "1-0"]
[WhiteElo "2470"]
[BlackElo "2438"]
[TimeControl "180+2"]
[EndTime "13:24:53 PDT"]
[Termination "Keaton87 won by resignation"]

1. d4 {[%clk 0:03:01.9]} 1... Nf6 {[%clk 0:03:00.4]} 2. Bg5 {[%clk 0:03:02.9]}
2... d5 {[%clk 0:03:00.7]} 3. e3 {[%clk 0:03:03.1]} 3... c5 {[%clk 0:03:00.1]}
4. c3 {[%clk 0:03:02.5]} 4... Nc6 {[%clk 0:02:58.1]} 5. Nd2 {[%clk 0:03:02.6]}
5... Qb6 {[%clk 0:02:48.2]} 6. Qb3 {[%clk 0:03:02.5]} 6... c4 {[%clk 0:02:49.1]}
7. Qc2 {[%clk 0:02:56]} 7... Bg4 {[%clk 0:02:33.8]} 8. e4 {[%clk 0:02:45.4]}
8... e6 {[%clk 0:02:14.3]} 9. Bxf6 {[%clk 0:02:37.9]} 9... gxf6 {[%clk
0:02:14.5]} 10. Be2 {[%clk 0:02:38.8]} 10... Rg8 {[%clk 0:01:36.2]} 11. h3
{[%clk 0:02:29.7]} 11... Bxe2 {[%clk 0:01:35.7]} 12. Nxe2 {[%clk 0:02:31.6]}
12... Rxg2 {[%clk 0:01:17.8]} 13. Ng3 {[%clk 0:02:32.3]} 13... Bd6 {[%clk
0:00:49.1]} 14. Kf1 {[%clk 0:02:33.2]} 14... Rxg3 {[%clk 0:00:34.6]} 15. fxg3
{[%clk 0:02:33.7]} 15... Bxg3 {[%clk 0:00:29.9]} 16. Rg1 {[%clk 0:02:33.9]}
16... Qc7 {[%clk 0:00:29.8]} 17. Rg2 {[%clk 0:02:09.7]} 17... Qf4+ {[%clk
0:00:29.3]} 18. Kg1 {[%clk 0:02:10.7]} 18... O-O-O {[%clk 0:00:29.1]} 19. Rf1
{[%clk 0:02:09.9]} 19... Qe3+ {[%clk 0:00:30.2]} 20. Kh1 {[%clk 0:02:11.1]}
20... Bf4 {[%clk 0:00:23.4]} 21. Rf3 {[%clk 0:01:48.4]} 21... Qe1+ {[%clk
0:00:23.9]} 22. Rf1 {[%clk 0:01:49]} 22... Qe3 {[%clk 0:00:24.8]} 23. Rf3 {[%clk
0:01:37.7]} 23... Qe1+ {[%clk 0:00:25.9]} 24. Nf1 {[%clk 0:01:38.8]} 24... e5
{[%clk 0:00:18.5]} 25. exd5 {[%clk 0:01:35.1]} 25... Rxd5 {[%clk 0:00:17.4]} 26.
Qxh7 {[%clk 0:01:24]} 26... Rd7 {[%clk 0:00:12.7]} 27. d5 {[%clk 0:01:12.6]}
27... Ne7 {[%clk 0:00:11.9]} 28. Qxf7 {[%clk 0:01:08.9]} 28... Nxd5 {[%clk
0:00:12.8]} 29. Qe6 {[%clk 0:01:05.8]} 29... Ne3 {[%clk 0:00:09.6]} 30. Rg7
{[%clk 0:01:02.1]} 30... Qd1 {[%clk 0:00:07]} 31. Qxd7+ {[%clk 0:01:01.6]} 31...
Qxd7 {[%clk 0:00:07.7]} 32. Rxd7 {[%clk 0:01:03.1]} 32... Nxf1 {[%clk
0:00:07.8]} 33. Rxf4 {[%clk 0:00:37.5]} 33... exf4 {[%clk 0:00:03.9]} 34. Rf7
{[%clk 0:00:34.5]} 34... Ne3 {[%clk 0:00:03.9]} 35. Rxf6 {[%clk 0:00:31.5]}
35... Nd1 {[%clk 0:00:04.4]} 36. Rxf4 {[%clk 0:00:29.8]} 36... Nxb2 {[%clk
0:00:05.5]} 37. h4 {[%clk 0:00:30.6]} 37... b5 {[%clk 0:00:06.2]} 38. h5 {[%clk
0:00:31.1]} 38... b4 {[%clk 0:00:07.5]} 39. cxb4 {[%clk 0:00:30.3]} 39... c3
{[%clk 0:00:08.1]} 40. Rf2 {[%clk 0:00:29.2]} 40... Nd3 {[%clk 0:00:04.5]} 41.
Rc2 {[%clk 0:00:28.8]} 41... Nxb4 {[%clk 0:00:04.1]} 42. Rxc3+ {[%clk
0:00:29.8]} 42... Kd7 {[%clk 0:00:05.8]} 43. Rg3 {[%clk 0:00:29]} 43... Nd5
{[%clk 0:00:04.7]} 44. h6 {[%clk 0:00:29.7]} 44... Nf6 {[%clk 0:00:06.6]} 45. h7
{[%clk 0:00:29.8]} 45... Nxh7 {[%clk 0:00:07.2]} 46. Rg7+ {[%clk 0:00:30.3]} 1-0

[Event "*** Titled Tuesday Blitz"]
[Site "Chess.com"]
[Date "2018.06.05"]
[Round "2"]
[White "aspired"]
[Black "GMNeiksans"]
[Result "0-1"]
[WhiteElo "2539"]
[BlackElo "2735"]
[TimeControl "180+2"]
[EndTime "13:24:55 PDT"]
[Termination "GMNeiksans won by resignation"]

1. e4 {[%clk 0:03:01.9]} 1... c5 {[%clk 0:03:00.1]} 2. Nf3 {[%clk 0:03:02.3]}
2... Nc6 {[%clk 0:02:59.4]} 3. Bb5 {[%clk 0:03:01.6]} 3... g6 {[%clk 0:03:00]}
4. Bxc6 {[%clk 0:03:02.6]} 4... bxc6 {[%clk 0:03:00.5]} 5. O-O {[%clk
0:03:02.3]} 5... Bg7 {[%clk 0:03:01.4]} 6. Re1 {[%clk 0:03:01.4]} 6... Nh6
{[%clk 0:02:56.3]} 7. d4 {[%clk 0:02:44.8]} 7... cxd4 {[%clk 0:02:55.8]} 8. Bxh6
{[%clk 0:02:46.3]} 8... Bxh6 {[%clk 0:02:55.7]} 9. Qxd4 {[%clk 0:02:47.8]} 9...
O-O {[%clk 0:02:56.1]} 10. Nc3 {[%clk 0:02:44.7]} 10... Qb6 {[%clk 0:02:55.6]}
11. Rad1 {[%clk 0:02:36]} 11... Qxd4 {[%clk 0:02:42.6]} 12. Nxd4 {[%clk
0:02:31.1]} 12... Rb8 {[%clk 0:02:39.8]} 13. b3 {[%clk 0:02:27.2]} 13... Bg7
{[%clk 0:02:36.7]} 14. Na4 {[%clk 0:02:26.4]} 14... Ra8 {[%clk 0:02:10]} 15. c4
{[%clk 0:02:15.9]} 15... f6 {[%clk 0:01:40.5]} 16. f4 {[%clk 0:02:05.1]} 16...
Kf7 {[%clk 0:01:28]} 17. e5 {[%clk 0:01:54.6]} 17... fxe5 {[%clk 0:01:28.6]} 18.
fxe5 {[%clk 0:01:56.5]} 18... Ke8 {[%clk 0:01:29.8]} 19. Nc5 {[%clk 0:01:50.3]}
19... Rf4 {[%clk 0:01:20.7]} 20. g3 {[%clk 0:01:46.5]} 20... Rf8 {[%clk
0:01:18.8]} 21. b4 {[%clk 0:01:26.3]} 21... e6 {[%clk 0:01:14.2]} 22. b5 {[%clk
0:01:22.5]} 22... cxb5 {[%clk 0:01:14.8]} 23. Nxb5 {[%clk 0:01:16.4]} 23... Ke7
{[%clk 0:01:15.6]} 24. Nd6 {[%clk 0:01:11.4]} 24... Rd8 {[%clk 0:01:12.4]} 25.
Rf1 {[%clk 0:01:06.7]} 25... Rf8 {[%clk 0:01:00.7]} 26. Nxc8+ {[%clk 0:00:44.4]}
26... Raxc8 {[%clk 0:01:01.1]} 27. Rxd7+ {[%clk 0:00:45.2]} 27... Ke8 {[%clk
0:01:02.4]} 28. Rxg7 {[%clk 0:00:40.3]} 28... Rxc5 {[%clk 0:01:03]} 29. Rxf8+
{[%clk 0:00:37.2]} 29... Kxf8 {[%clk 0:01:03.7]} 30. Rxh7 {[%clk 0:00:38.3]}
30... Ra5 {[%clk 0:01:00.3]} 31. Kf2 {[%clk 0:00:35.6]} 31... Rxa2+ {[%clk
0:01:00.8]} 32. Ke3 {[%clk 0:00:36.8]} 32... a5 {[%clk 0:01:00.9]} 33. h4 {[%clk
0:00:37]} 33... a4 {[%clk 0:01:02]} 34. Ra7 {[%clk 0:00:38.4]} 34... a3 {[%clk
0:01:02.1]} 35. Kf4 {[%clk 0:00:38.6]} 35... Rf2+ {[%clk 0:00:40.4]} 36. Kg5
{[%clk 0:00:37.7]} 36... Rf3 {[%clk 0:00:41.5]} 37. g4 {[%clk 0:00:34.8]} 37...
Rc3 {[%clk 0:00:42.1]} 38. Kf6 {[%clk 0:00:31.1]} 38... Ke8 {[%clk 0:00:40.9]}
39. Kxe6 {[%clk 0:00:31]} 39... Kd8 {[%clk 0:00:42.4]} 40. Kd5 {[%clk
0:00:24.6]} 40... Rg3 {[%clk 0:00:39.9]} 41. h5 {[%clk 0:00:22.5]} 41... gxh5
{[%clk 0:00:39]} 42. gxh5 {[%clk 0:00:24.4]} 42... Rh3 {[%clk 0:00:40.2]} 43. c5
{[%clk 0:00:23.6]} 43... Rd3+ {[%clk 0:00:38.7]} 44. Ke6 {[%clk 0:00:23.7]}
44... Rh3 {[%clk 0:00:39.5]} 45. Kd6 {[%clk 0:00:19.1]} 45... Rd3+ {[%clk
0:00:40.3]} 46. Kc6 {[%clk 0:00:20]} 46... Rh3 {[%clk 0:00:41.2]} 47. Rxa3
{[%clk 0:00:19.6]} 47... Rxa3 {[%clk 0:00:41.2]} 0-1

[Event "*** Titled Tuesday Blitz"]
[Site "Chess.com"]
[Date "2018.06.05"]
[Round "2"]
[White "grzechu96"]
[Black "chessking2151"]
[Result "1-0"]
[WhiteElo "2496"]
[BlackElo "2425"]
[TimeControl "180+2"]
[EndTime "13:24:57 PDT"]
[Termination "grzechu96 won on time"]

1. e4 {[%clk 0:03:01.1]} 1... e5 {[%clk 0:02:59.6]} 2. Nf3 {[%clk 0:03:02.1]}
2... Nc6 {[%clk 0:02:59.4]} 3. d4 {[%clk 0:03:03.5]} 3... exd4 {[%clk
0:02:59.6]} 4. Nxd4 {[%clk 0:03:05.4]} 4... Bc5 {[%clk 0:02:59.3]} 5. Nb3 {[%clk
0:03:05.6]} 5... Bb6 {[%clk 0:02:58.9]} 6. Nc3 {[%clk 0:03:05.1]} 6... Nf6
{[%clk 0:02:59.4]} 7. Bg5 {[%clk 0:03:05.9]} 7... d6 {[%clk 0:02:53.6]} 8. f3
{[%clk 0:02:42.1]} 8... Be6 {[%clk 0:02:49.6]} 9. Bb5 {[%clk 0:02:39.9]} 9... h6
{[%clk 0:02:47.4]} 10. Bh4 {[%clk 0:02:40]} 10... a6 {[%clk 0:02:47.6]} 11.
Bxc6+ {[%clk 0:02:40.2]} 11... bxc6 {[%clk 0:02:48.5]} 12. Qe2 {[%clk
0:02:41.6]} 12... a5 {[%clk 0:02:37.1]} 13. O-O-O {[%clk 0:02:25.1]} 13... g5
{[%clk 0:02:31.7]} 14. Bf2 {[%clk 0:02:20.9]} 14... Bxf2 {[%clk 0:02:21.7]} 15.
Qxf2 {[%clk 0:02:21.8]} 15... Qe7 {[%clk 0:02:19.8]} 16. Rhe1 {[%clk 0:02:19.3]}
16... Nd7 {[%clk 0:02:19]} 17. g3 {[%clk 0:01:34.1]} 17... Qf6 {[%clk
0:01:57.4]} 18. f4 {[%clk 0:01:04.9]} 18... O-O {[%clk 0:01:21.6]} 19. Qe3
{[%clk 0:00:39.6]} 19... Bg4 {[%clk 0:01:01]} 20. e5 {[%clk 0:00:24.2]} 20...
dxe5 {[%clk 0:00:56.4]} 21. fxe5 {[%clk 0:00:25.5]} 21... Qg6 {[%clk 0:00:58]}
22. Rd2 {[%clk 0:00:16.6]} 22... Nb6 {[%clk 0:00:59.3]} 23. Qc5 {[%clk
0:00:07.7]} 23... Rfd8 {[%clk 0:00:18.9]} 24. Nd4 {[%clk 0:00:07.9]} 24... Rd5
{[%clk 0:00:19.7]} 25. Nxd5 {[%clk 0:00:08.9]} 25... cxd5 {[%clk 0:00:19.4]} 26.
Qc6 {[%clk 0:00:03.1]} 26... Qh5 {[%clk 0:00:19.4]} 27. Qxc7 {[%clk 0:00:03.6]}
27... Nc4 {[%clk 0:00:19.6]} 28. Rd3 {[%clk 0:00:05.2]} 28... Rc8 {[%clk
0:00:17.9]} 29. Qa7 {[%clk 0:00:03.9]} 29... Qxh2 {[%clk 0:00:18.2]} 30. b3
{[%clk 0:00:04.4]} 30... Na3 {[%clk 0:00:19]} 31. Rd2 {[%clk 0:00:05.8]} 31...
Qxg3 {[%clk 0:00:19.5]} 32. Rf1 {[%clk 0:00:07]} 32... Bh5 {[%clk 0:00:10]} 33.
Ne2 {[%clk 0:00:06.4]} 33... Qe3 {[%clk 0:00:10.1]} 34. Qxe3 {[%clk 0:00:06.9]}
34... Bg6 {[%clk 0:00:08.6]} 35. Nd4 {[%clk 0:00:07.9]} 35... Rc7 {[%clk
0:00:09.6]} 36. e6 {[%clk 0:00:09.1]} 36... Re7 {[%clk 0:00:10.9]} 37. exf7+
{[%clk 0:00:10.2]} 37... Kf8 {[%clk 0:00:12.5]} 38. Qxe7+ {[%clk 0:00:10.7]} 1-0

[Event "*** Titled Tuesday Blitz"]
[Site "Chess.com"]
[Date "2018.06.05"]
[Round "2"]
[White "FearNoEvil12"]
[Black "Siemba"]
[Result "1-0"]
[WhiteElo "1957"]
[BlackElo "2005"]
[TimeControl "180+2"]
[EndTime "13:25:02 PDT"]
[Termination "FearNoEvil12 won on time"]

1. e4 {[%clk 0:03:01.9]} 1... c5 {[%clk 0:02:59.8]} 2. Nc3 {[%clk 0:03:01.8]}
2... d6 {[%clk 0:03:00.1]} 3. f4 {[%clk 0:03:03.1]} 3... Nc6 {[%clk 0:02:46]} 4.
Bc4 {[%clk 0:03:03.8]} 4... e6 {[%clk 0:02:45.7]} 5. Nf3 {[%clk 0:03:04.5]} 5...
Nf6 {[%clk 0:02:47.2]} 6. d3 {[%clk 0:03:04.7]} 6... Be7 {[%clk 0:02:47.2]} 7.
O-O {[%clk 0:03:03.9]} 7... O-O {[%clk 0:02:47.9]} 8. Bb3 {[%clk 0:03:04.4]}
8... Nd4 {[%clk 0:02:46.9]} 9. Nxd4 {[%clk 0:03:04.4]} 9... cxd4 {[%clk
0:02:48.8]} 10. Ne2 {[%clk 0:03:05.1]} 10... e5 {[%clk 0:02:48.6]} 11. f5 {[%clk
0:03:05.4]} 11... d5 {[%clk 0:02:46.7]} 12. Ng3 {[%clk 0:03:05.6]} 12... dxe4
{[%clk 0:02:44.4]} 13. dxe4 {[%clk 0:03:05.9]} 13... h6 {[%clk 0:02:33.1]} 14.
Bc4 {[%clk 0:03:05.1]} 14... Nh7 {[%clk 0:02:27.7]} 15. Qe2 {[%clk 0:03:04]}
15... Bg5 {[%clk 0:02:27.9]} 16. Nh5 {[%clk 0:02:58.4]} 16... Bxc1 {[%clk
0:02:25.8]} 17. Raxc1 {[%clk 0:02:57.6]} 17... Qg5 {[%clk 0:02:27.4]} 18. Rce1
{[%clk 0:02:48.6]} 18... Bd7 {[%clk 0:02:18.1]} 19. Kh1 {[%clk 0:02:31.6]} 19...
Bc6 {[%clk 0:02:18.4]} 20. f6 {[%clk 0:02:24.1]} 20... g6 {[%clk 0:01:46.6]} 21.
Ng3 {[%clk 0:02:19.7]} 21... Nxf6 {[%clk 0:01:39.2]} 22. Qf3 {[%clk 0:02:16.8]}
22... Ng4 {[%clk 0:01:31]} 23. Bxf7+ {[%clk 0:01:39.8]} 23... Kg7 {[%clk
0:01:28.3]} 24. Qb3 {[%clk 0:01:40.7]} 24... Qh4 {[%clk 0:01:05.8]} 25. h3
{[%clk 0:01:40]} 25... Ne3 {[%clk 0:01:05.5]} 26. Qe6 {[%clk 0:01:34.2]} 26...
Qg5 {[%clk 0:00:54.1]} 27. Rf3 {[%clk 0:01:19.7]} 27... Bxe4 {[%clk 0:00:32.2]}
28. Rfxe3 {[%clk 0:01:17.5]} 28... Bxg2+ {[%clk 0:00:29.9]} 29. Kxg2 {[%clk
0:01:17.3]} 29... dxe3 {[%clk 0:00:31.8]} 30. h4 {[%clk 0:01:11.5]} 30... Qf6
{[%clk 0:00:23.4]} 31. Qxf6+ {[%clk 0:01:07.7]} 31... Kxf6 {[%clk 0:00:25.3]}
32. Bb3 {[%clk 0:01:02.7]} 32... Rad8 {[%clk 0:00:22.3]} 33. Rxe3 {[%clk
0:01:02.3]} 33... Rd2+ {[%clk 0:00:21.9]} 34. Kh3 {[%clk 0:01:02.5]} 34... Kg7
{[%clk 0:00:19.8]} 35. Rxe5 {[%clk 0:00:58.7]} 35... h5 {[%clk 0:00:20.4]} 36.
Re2 {[%clk 0:00:49.1]} 36... Rd4 {[%clk 0:00:14.7]} 37. Re7+ {[%clk 0:00:44.4]}
37... Kh6 {[%clk 0:00:10.3]} 38. Re4 {[%clk 0:00:25.1]} 38... Rd7 {[%clk
0:00:06.4]} 39. Ra4 {[%clk 0:00:16.4]} 39... b6 {[%clk 0:00:06.9]} 40. Ne4
{[%clk 0:00:17.6]} 40... Kg7 {[%clk 0:00:07.1]} 41. Ng5 {[%clk 0:00:16.6]} 1-0